[Event "Titled Tuesday Blitz August 09 Late 2022"]
[White "Harvey, Marcus R"]
[Black "Chigaev, Maksim"]
[WhiteFideId "400092"]
[BlackFideId "4108116"]
[WhiteElo "2485"]
[BlackElo "2487"]
[Result "1-0"]
[Round "03"]
[TimeControl "180+1"]
[Date "2022.08.09"]
[WhiteClock "0:00:25"]
[BlackClock "0:00:03"]

1. d4 {[%clk 0:02:58]}  Nf6 {[%clk 0:02:59]} 2. Nf3 {[%clk 0:02:58]}  g6 {[%clk 0:03:00]} 3. b3 {[%clk 0:02:57]}  Bg7 {[%clk 0:02:59]} 4. Bb2 {[%clk 0:02:57]}  O-O {[%clk 0:03:00]} 5. g3 {[%clk 0:02:58]}  d6 {[%clk 0:02:56]} 6. Bg2 {[%clk 0:02:58]}  e5 {[%clk 0:02:57]} 7. dxe5 {[%clk 0:02:58]}  dxe5 {[%clk 0:02:57]} 8. Qxd8 {[%clk 0:02:56]}  Rxd8 {[%clk 0:02:58]} 9. Nxe5 {[%clk 0:02:53]}  Na6 {[%clk 0:02:57]} 10. Nd3 {[%clk 0:02:52]}  Re8 {[%clk 0:02:48]} 11. Nc3 {[%clk 0:02:48]}  c6 {[%clk 0:02:43]} 12. O-O {[%clk 0:02:38]}  Bf5 {[%clk 0:02:39]} 13. a3 {[%clk 0:02:32]}  Rad8 {[%clk 0:02:36]} 14. Rad1 {[%clk 0:02:30]}  h5 {[%clk 0:02:34]} 15. h3 {[%clk 0:02:28]}  Bxd3 {[%clk 0:02:12]} 16. Rxd3 {[%clk 0:02:21]}  Rxd3 {[%clk 0:02:11]} 17. exd3 {[%clk 0:02:21]}  Nd5 {[%clk 0:02:03]} 18. Nxd5 {[%clk 0:01:58]}  cxd5 {[%clk 0:02:04]} 19. Bxg7 {[%clk 0:01:57]}  Kxg7 {[%clk 0:01:47]} 20. Bxd5 {[%clk 0:01:56]}  b6 {[%clk 0:01:47]} 21. b4 {[%clk 0:01:49]}  Nc7 {[%clk 0:01:44]} 22. Bc4 {[%clk 0:01:42]}  f5 {[%clk 0:01:43]} 23. Rc1 {[%clk 0:01:38]}  g5 {[%clk 0:01:40]} 24. Kf1 {[%clk 0:01:39]}  Kf6 {[%clk 0:01:38]} 25. Re1 {[%clk 0:01:38]}  Rd8 {[%clk 0:01:38]} 26. b5 {[%clk 0:01:34]}  g4 {[%clk 0:01:04]} 27. h4 {[%clk 0:01:32]}  Nd5 {[%clk 0:01:01]} 28. a4 {[%clk 0:01:24]}  Nc7 {[%clk 0:00:52]} 29. f4 {[%clk 0:01:12]}  gxf3 {[%clk 0:00:31]} 30. Kf2 {[%clk 0:01:12]}  Nd5 {[%clk 0:00:14]} 31. Kxf3 {[%clk 0:01:12]}  Nb4 {[%clk 0:00:15]} 32. Re6+ {[%clk 0:01:10]}  Kg7 {[%clk 0:00:15]} 33. Re7+ {[%clk 0:00:57]}  Kf6 {[%clk 0:00:15]} 34. Rxa7 {[%clk 0:00:56]}  Nxc2 {[%clk 0:00:15]} 35. Ra6 {[%clk 0:00:49]}  Ke5 {[%clk 0:00:14]} 36. Rxb6 {[%clk 0:00:48]}  Nd4+ {[%clk 0:00:15]} 37. Kf2 {[%clk 0:00:48]}  Rf8 {[%clk 0:00:12]} 38. Rb7 {[%clk 0:00:41]}  f4 {[%clk 0:00:09]} 39. Re7+ {[%clk 0:00:41]}  Kf6 {[%clk 0:00:05]} 40. Re4 {[%clk 0:00:39]}  fxg3+ {[%clk 0:00:06]} 41. Kxg3 {[%clk 0:00:40]}  Nf5+ {[%clk 0:00:07]} 42. Kf3 {[%clk 0:00:39]}  Ra8 {[%clk 0:00:07]} 43. Re6+ {[%clk 0:00:34]}  Kg7 {[%clk 0:00:07]} 44. Ra6 {[%clk 0:00:34]}  Nxh4+ {[%clk 0:00:05]} 45. Ke4 {[%clk 0:00:33]}  Re8+ {[%clk 0:00:05]} 46. Re6 {[%clk 0:00:33]}  Rf8 {[%clk 0:00:04]} 47. b6 {[%clk 0:00:33]}  Ng6 {[%clk 0:00:04]} 48. b7 {[%clk 0:00:31]}  h4 {[%clk 0:00:04]} 49. Rb6 {[%clk 0:00:25]}  Rb8 {[%clk 0:00:04]} 50. Be6 {[%clk 0:00:24]}  Nf8 {[%clk 0:00:03]} 51. Bc8 {[%clk 0:00:24]}  Kf7 {[%clk 0:00:03]} 52. a5 {[%clk 0:00:24]}  Ke7 {[%clk 0:00:03]} 53. a6 {[%clk 0:00:25]} 1-0


[Site "https://www.chess.com"]

[Event "Titled Tuesday Blitz August 09 Late 2022"]
[White "Hilby, Craig"]
[Black "Llorente Zaro, Alfonso"]
[WhiteFideId "2062674"]
[BlackFideId "2254131"]
[WhiteElo "2403"]
[BlackElo "2485"]
[Result "1-0"]
[Round "03"]
[TimeControl "180+1"]
[Date "2022.08.09"]
[WhiteClock "0:00:15"]
[BlackClock "0:00:02"]

1. e4 {[%clk 0:02:36]}  Nf6 {[%clk 0:02:55]} 2. e5 {[%clk 0:02:36]}  Nd5 {[%clk 0:02:55]} 3. d4 {[%clk 0:02:37]}  d6 {[%clk 0:02:56]} 4. c4 {[%clk 0:02:37]}  Nb6 {[%clk 0:02:56]} 5. exd6 {[%clk 0:02:38]}  exd6 {[%clk 0:02:57]} 6. Nc3 {[%clk 0:02:37]}  Be7 {[%clk 0:02:57]} 7. Bd3 {[%clk 0:02:34]}  Nc6 {[%clk 0:02:56]} 8. Nge2 {[%clk 0:02:32]}  Bg4 {[%clk 0:02:56]} 9. h3 {[%clk 0:02:28]}  Bh5 {[%clk 0:02:53]} 10. Qc2 {[%clk 0:02:28]}  Nb4 {[%clk 0:02:50]} 11. Qb1 {[%clk 0:02:23]}  Nxd3+ {[%clk 0:02:50]} 12. Qxd3 {[%clk 0:02:24]}  Bg6 {[%clk 0:02:51]} 13. Qf3 {[%clk 0:02:15]}  Nxc4 {[%clk 0:02:45]} 14. Qxb7 {[%clk 0:02:15]}  O-O {[%clk 0:02:45]} 15. O-O {[%clk 0:02:09]}  Rb8 {[%clk 0:02:43]} 16. Qxa7 {[%clk 0:02:07]}  Nxb2 {[%clk 0:02:43]} 17. Nf4 {[%clk 0:02:03]}  Bf5 {[%clk 0:02:37]} 18. Ncd5 {[%clk 0:02:03]}  Bf6 {[%clk 0:02:02]} 19. Nxf6+ {[%clk 0:01:49]}  Qxf6 {[%clk 0:02:03]} 20. Nd5 {[%clk 0:01:47]}  Qh4 {[%clk 0:02:04]} 21. Bf4 {[%clk 0:01:33]}  Be6 {[%clk 0:01:46]} 22. Bg3 {[%clk 0:01:32]}  Qe4 {[%clk 0:01:42]} 23. Nxc7 {[%clk 0:01:24]}  Rb7 {[%clk 0:01:42]} 24. Qa5 {[%clk 0:01:24]}  Nc4 {[%clk 0:01:41]} 25. Rfe1 {[%clk 0:00:59]}  Qd3 {[%clk 0:01:10]} 26. Qa6 {[%clk 0:00:47]}  Rxc7 {[%clk 0:01:01]} 27. Bxd6 {[%clk 0:00:47]}  Rcc8 {[%clk 0:00:44]} 28. Bxf8 {[%clk 0:00:45]}  Rxf8 {[%clk 0:00:45]} 29. Rad1 {[%clk 0:00:29]}  Qc3 {[%clk 0:00:42]} 30. Rc1 {[%clk 0:00:25]}  Qd2 {[%clk 0:00:26]} 31. Red1 {[%clk 0:00:17]}  Qe2 {[%clk 0:00:19]} 32. d5 {[%clk 0:00:16]}  Nb2 {[%clk 0:00:02]} 33. Qxe2 {[%clk 0:00:15]} 1-0


[Site "https://www.chess.com"]

[Event "Titled Tuesday Blitz August 09 Late 2022"]
[White "Holt, Conrad"]
[Black "Goltsev, Dmitry"]
[WhiteFideId "2034387"]
[BlackFideId "24176710"]
[WhiteElo "2586"]
[BlackElo "2258"]
[Result "0-1"]
[Round "03"]
[TimeControl "180+1"]
[Date "2022.08.09"]
[WhiteClock "0:00:14"]
[BlackClock "0:00:08"]

1. d4 {[%clk 0:02:54]}  Nf6 {[%clk 0:02:27]} 2. c4 {[%clk 0:02:53]}  e6 {[%clk 0:02:28]} 3. Nc3 {[%clk 0:02:53]}  d5 {[%clk 0:02:29]} 4. cxd5 {[%clk 0:02:53]}  exd5 {[%clk 0:02:30]} 5. Bg5 {[%clk 0:02:53]}  c6 {[%clk 0:02:30]} 6. e3 {[%clk 0:02:52]}  Be7 {[%clk 0:02:31]} 7. Qc2 {[%clk 0:02:49]}  h6 {[%clk 0:02:30]} 8. Bh4 {[%clk 0:02:48]}  Nbd7 {[%clk 0:02:31]} 9. Bd3 {[%clk 0:02:47]}  Nf8 {[%clk 0:02:31]} 10. Nf3 {[%clk 0:02:45]}  Ne6 {[%clk 0:02:31]} 11. O-O {[%clk 0:02:43]}  a6 {[%clk 0:02:27]} 12. Rad1 {[%clk 0:02:28]}  Bd7 {[%clk 0:02:25]} 13. Ne5 {[%clk 0:02:27]}  Rc8 {[%clk 0:02:24]} 14. Na4 {[%clk 0:02:14]}  Ng5 {[%clk 0:02:08]} 15. Nc5 {[%clk 0:02:03]}  Rc7 {[%clk 0:01:46]} 16. Nexd7 {[%clk 0:01:53]}  Nxd7 {[%clk 0:01:47]} 17. Bg3 {[%clk 0:01:54]}  O-O {[%clk 0:00:59]} 18. Bxc7 {[%clk 0:01:51]}  Qxc7 {[%clk 0:01:00]} 19. Nxd7 {[%clk 0:01:49]}  Qxd7 {[%clk 0:00:59]} 20. Bf5 {[%clk 0:01:36]}  Qc7 {[%clk 0:00:49]} 21. e4 {[%clk 0:01:22]}  g6 {[%clk 0:00:46]} 22. f4 {[%clk 0:01:15]}  gxf5 {[%clk 0:00:40]} 23. fxg5 {[%clk 0:01:14]}  fxe4 {[%clk 0:00:39]} 24. Rf5 {[%clk 0:01:07]}  Bxg5 {[%clk 0:00:35]} 25. Rxd5 {[%clk 0:01:04]}  Re8 {[%clk 0:00:33]} 26. Rf5 {[%clk 0:01:00]}  e3 {[%clk 0:00:33]} 27. Qe2 {[%clk 0:00:56]}  Qd7 {[%clk 0:00:24]} 28. Rdf1 {[%clk 0:00:47]}  Re7 {[%clk 0:00:19]} 29. h4 {[%clk 0:00:14]}  Bxh4 {[%clk 0:00:16]} 30. Qg4+ {[%clk 0:00:14]}  Bg5 {[%clk 0:00:06]} 31. Rxg5+ {[%clk 0:00:15]}  hxg5 {[%clk 0:00:07]} 32. Qxg5+ {[%clk 0:00:15]}  Kf8 {[%clk 0:00:08]} 33. Qh6+ {[%clk 0:00:16]}  Kg8 {[%clk 0:00:09]} 34. Rf5 {[%clk 0:00:14]}  Qxf5 {[%clk 0:00:08]} 0-1


[Site "https://www.chess.com"]

[Event "Titled Tuesday Blitz August 09 Late 2022"]
[White "Iliaguev, Nisim"]
[Black "Andreikin, Dmitry"]
[WhiteFideId "2817276"]
[BlackFideId "4158814"]
[WhiteElo "2107"]
[BlackElo "2736"]
[Result "1/2-1/2"]
[Round "03"]
[TimeControl "180+1"]
[Date "2022.08.09"]
[WhiteClock "0:00:11"]
[BlackClock "0:00:07"]

1. d4 {[%clk 0:02:59]}  Nf6 {[%clk 0:02:59]} 2. Nf3 {[%clk 0:02:56]}  g6 {[%clk 0:02:59]} 3. g3 {[%clk 0:02:56]}  b6 {[%clk 0:02:58]} 4. Bg2 {[%clk 0:02:57]}  Bb7 {[%clk 0:02:59]} 5. O-O {[%clk 0:02:57]}  Bg7 {[%clk 0:02:59]} 6. c4 {[%clk 0:02:57]}  O-O {[%clk 0:02:59]} 7. Nc3 {[%clk 0:02:53]}  Ne4 {[%clk 0:02:59]} 8. Nxe4 {[%clk 0:02:46]}  Bxe4 {[%clk 0:03:00]} 9. h4 {[%clk 0:02:45]}  d5 {[%clk 0:02:58]} 10. Qa4 {[%clk 0:02:36]}  Qd7 {[%clk 0:02:50]} 11. Qxd7 {[%clk 0:02:34]}  Nxd7 {[%clk 0:02:50]} 12. cxd5 {[%clk 0:02:31]}  Bxd5 {[%clk 0:02:49]} 13. Bf4 {[%clk 0:02:30]}  c5 {[%clk 0:02:48]} 14. Rad1 {[%clk 0:02:27]}  Rad8 {[%clk 0:02:38]} 15. dxc5 {[%clk 0:02:18]}  Nxc5 {[%clk 0:02:37]} 16. Ne5 {[%clk 0:02:15]}  Bxg2 {[%clk 0:02:20]} 17. Kxg2 {[%clk 0:02:16]}  Rc8 {[%clk 0:02:15]} 18. Nd7 {[%clk 0:02:13]}  Rfe8 {[%clk 0:02:05]} 19. Nxc5 {[%clk 0:02:08]}  Rxc5 {[%clk 0:02:06]} 20. Rd2 {[%clk 0:02:03]}  f5 {[%clk 0:02:03]} 21. b3 {[%clk 0:02:00]}  Kf7 {[%clk 0:02:01]} 22. Rfd1 {[%clk 0:01:54]}  Bf6 {[%clk 0:01:59]} 23. Rd7 {[%clk 0:01:51]}  Rc2 {[%clk 0:01:58]} 24. Rxa7 {[%clk 0:01:46]}  Rxe2 {[%clk 0:01:58]} 25. a4 {[%clk 0:01:42]}  Rc8 {[%clk 0:01:57]} 26. Rd2 {[%clk 0:01:28]}  Re4 {[%clk 0:01:41]} 27. Bc7 {[%clk 0:01:25]}  Rb4 {[%clk 0:01:38]} 28. Rd3 {[%clk 0:01:20]}  Ke6 {[%clk 0:01:36]} 29. Rb7 {[%clk 0:01:16]}  Bd4 {[%clk 0:01:31]} 30. Bf4 {[%clk 0:01:11]}  Rc3 {[%clk 0:01:09]} 31. Rxc3 {[%clk 0:01:09]}  Bxc3 {[%clk 0:01:10]} 32. Be3 {[%clk 0:01:09]}  Rxb3 {[%clk 0:01:11]} 33. Rxb6+ {[%clk 0:01:10]}  Rxb6 {[%clk 0:01:11]} 34. Bxb6 {[%clk 0:01:11]}  Kd5 {[%clk 0:01:11]} 35. Kf3 {[%clk 0:01:04]}  e5 {[%clk 0:01:11]} 36. Ke2 {[%clk 0:00:45]}  Kc4 {[%clk 0:01:11]} 37. f3 {[%clk 0:00:39]}  h5 {[%clk 0:01:10]} 38. Bc7 {[%clk 0:00:34]}  Kb4 {[%clk 0:00:47]} 39. Kd3 {[%clk 0:00:33]}  Bb2 {[%clk 0:00:45]} 40. a5 {[%clk 0:00:28]}  Kb5 {[%clk 0:00:45]} 41. Bb6 {[%clk 0:00:23]}  Ba3 {[%clk 0:00:41]} 42. Bc7 {[%clk 0:00:21]}  Bb2 {[%clk 0:00:40]} 43. Bb6 {[%clk 0:00:22]}  Ba1 {[%clk 0:00:37]} 44. Bc7 {[%clk 0:00:22]}  Bd4 {[%clk 0:00:28]} 45. f4 {[%clk 0:00:20]}  Bf2 {[%clk 0:00:28]} 46. fxe5 {[%clk 0:00:17]}  Bxg3 {[%clk 0:00:28]} 47. a6 {[%clk 0:00:14]}  Kxa6 {[%clk 0:00:26]} 48. e6 {[%clk 0:00:13]}  Bxh4 {[%clk 0:00:26]} 49. Bd6 {[%clk 0:00:11]}  Kb5 {[%clk 0:00:21]} 50. e7 {[%clk 0:00:12]}  Bxe7 {[%clk 0:00:21]} 51. Bxe7 {[%clk 0:00:13]}  Kc6 {[%clk 0:00:21]} 52. Ke3 {[%clk 0:00:13]}  Kd7 {[%clk 0:00:19]} 53. Bg5 {[%clk 0:00:13]}  Ke6 {[%clk 0:00:18]} 54. Kf4 {[%clk 0:00:14]}  Kd5 {[%clk 0:00:19]} 55. Bh4 {[%clk 0:00:15]}  Kd4 {[%clk 0:00:19]} 56. Bg5 {[%clk 0:00:16]}  Kd3 {[%clk 0:00:19]} 57. Kf3 {[%clk 0:00:16]}  Kc4 {[%clk 0:00:19]} 58. Kf4 {[%clk 0:00:16]}  Kd4 {[%clk 0:00:19]} 59. Bh4 {[%clk 0:00:14]}  Kd3 {[%clk 0:00:20]} 60. Kf3 {[%clk 0:00:14]}  Kd2 {[%clk 0:00:21]} 61. Bg5+ {[%clk 0:00:11]}  Ke1 {[%clk 0:00:21]} 62. Kg3 {[%clk 0:00:11]}  Ke2 {[%clk 0:00:20]} 63. Bf4 {[%clk 0:00:12]}  Kf1 {[%clk 0:00:18]} 64. Bg5 {[%clk 0:00:10]}  Kg1 {[%clk 0:00:16]} 65. Bf4 {[%clk 0:00:10]}  Kf1 {[%clk 0:00:17]} 66. Kh4 {[%clk 0:00:11]}  Kg2 {[%clk 0:00:16]} 67. Kg5 {[%clk 0:00:10]}  Kf3 {[%clk 0:00:15]} 68. Bc7 {[%clk 0:00:10]}  Ke4 {[%clk 0:00:07]} 69. Kxg6 {[%clk 0:00:08]}  h4 {[%clk 0:00:06]} 70. Kg5 {[%clk 0:00:09]}  h3 {[%clk 0:00:06]} 71. Bh2 {[%clk 0:00:09]}  f4 {[%clk 0:00:06]} 72. Bxf4 {[%clk 0:00:10]}  Kf3 {[%clk 0:00:06]} 73. Bh2 {[%clk 0:00:10]}  Kg2 {[%clk 0:00:07]} 74. Bd6 {[%clk 0:00:11]}  h2 {[%clk 0:00:07]} 75. Bxh2 {[%clk 0:00:11]} 1/2-1/2


[Site "https://www.chess.com"]

[Event "Titled Tuesday Blitz August 09 Late 2022"]
[White "Kravtsiv, Martyn"]
[Black "Nakamura, Hikaru"]
[WhiteFideId "14113147"]
[BlackFideId "2016192"]
[WhiteElo "2694"]
[BlackElo "2850"]
[Result "0-1"]
[Round "03"]
[TimeControl "180+1"]
[Date "2022.08.09"]
[WhiteClock "0:00:05"]
[BlackClock "0:00:17"]

1. e4 {[%clk 0:03:00]}  c6 {[%clk 0:02:57]} 2. Nf3 {[%clk 0:03:00]}  d5 {[%clk 0:02:58]} 3. d3 {[%clk 0:03:00]}  Bg4 {[%clk 0:02:58]} 4. h3 {[%clk 0:02:58]}  Bh5 {[%clk 0:02:57]} 5. Qe2 {[%clk 0:02:54]}  Nd7 {[%clk 0:02:56]} 6. Nc3 {[%clk 0:02:52]}  e6 {[%clk 0:02:51]} 7. g4 {[%clk 0:02:45]}  dxe4 {[%clk 0:02:49]} 8. Nxe4 {[%clk 0:02:31]}  Bg6 {[%clk 0:02:49]} 9. Bd2 {[%clk 0:02:31]}  Ngf6 {[%clk 0:02:46]} 10. Bg2 {[%clk 0:02:30]}  Qb6 {[%clk 0:02:43]} 11. O-O-O {[%clk 0:02:28]}  Qa6 {[%clk 0:02:39]} 12. Nxf6+ {[%clk 0:02:27]}  gxf6 {[%clk 0:02:40]} 13. Kb1 {[%clk 0:02:26]}  O-O-O {[%clk 0:02:37]} 14. Bc3 {[%clk 0:02:25]}  Qb6 {[%clk 0:02:35]} 15. Nh4 {[%clk 0:02:21]}  Bb4 {[%clk 0:02:34]} 16. Bxb4 {[%clk 0:02:20]}  Qxb4 {[%clk 0:02:35]} 17. a3 {[%clk 0:02:20]}  Qf4 {[%clk 0:02:29]} 18. Qe3 {[%clk 0:02:19]}  Qxe3 {[%clk 0:02:29]} 19. fxe3 {[%clk 0:02:20]}  h5 {[%clk 0:02:26]} 20. Bf3 {[%clk 0:02:06]}  hxg4 {[%clk 0:02:22]} 21. hxg4 {[%clk 0:02:07]}  Rdg8 {[%clk 0:02:19]} 22. d4 {[%clk 0:01:58]}  Kd8 {[%clk 0:02:11]} 23. Kc1 {[%clk 0:01:57]}  Ke7 {[%clk 0:02:07]} 24. Kd2 {[%clk 0:01:53]}  Nb6 {[%clk 0:02:05]} 25. b3 {[%clk 0:01:50]}  Nc8 {[%clk 0:02:04]} 26. Rh3 {[%clk 0:01:41]}  Kf8 {[%clk 0:02:02]} 27. Rdh1 {[%clk 0:01:38]}  Kg7 {[%clk 0:02:03]} 28. c4 {[%clk 0:01:28]}  Nd6 {[%clk 0:01:59]} 29. Nxg6 {[%clk 0:00:54]}  Rxh3 {[%clk 0:01:58]} 30. Rxh3 {[%clk 0:00:54]}  fxg6 {[%clk 0:01:58]} 31. Kc3 {[%clk 0:00:54]}  Re8 {[%clk 0:01:50]} 32. Bg2 {[%clk 0:00:44]}  e5 {[%clk 0:01:50]} 33. Kd3 {[%clk 0:00:31]}  a5 {[%clk 0:01:45]} 34. Rh1 {[%clk 0:00:30]}  Rd8 {[%clk 0:01:42]} 35. Kc3 {[%clk 0:00:29]}  Ne8 {[%clk 0:01:34]} 36. b4 {[%clk 0:00:26]}  axb4+ {[%clk 0:01:35]} 37. axb4 {[%clk 0:00:25]}  Ra8 {[%clk 0:01:35]} 38. Kb3 {[%clk 0:00:20]}  Rd8 {[%clk 0:01:25]} 39. d5 {[%clk 0:00:20]}  cxd5 {[%clk 0:01:18]} 40. Bxd5 {[%clk 0:00:20]}  b5 {[%clk 0:01:18]} 41. Ra1 {[%clk 0:00:18]}  Kh6 {[%clk 0:01:12]} 42. e4 {[%clk 0:00:11]}  bxc4+ {[%clk 0:01:10]} 43. Kxc4 {[%clk 0:00:12]}  Rc8+ {[%clk 0:01:07]} 44. Kb3 {[%clk 0:00:12]}  Kg5 {[%clk 0:01:03]} 45. b5 {[%clk 0:00:11]}  Nd6 {[%clk 0:00:58]} 46. Kb4 {[%clk 0:00:11]}  Rb8 {[%clk 0:00:52]} 47. Bc6 {[%clk 0:00:11]}  Kxg4 {[%clk 0:00:51]} 48. Rd1 {[%clk 0:00:11]}  Nxb5 {[%clk 0:00:50]} 49. Bxb5 {[%clk 0:00:12]}  f5 {[%clk 0:00:50]} 50. exf5 {[%clk 0:00:11]}  gxf5 {[%clk 0:00:51]} 51. Kc4 {[%clk 0:00:10]}  e4 {[%clk 0:00:50]} 52. Bc6 {[%clk 0:00:10]}  Rc8 {[%clk 0:00:49]} 53. Kc5 {[%clk 0:00:10]}  e3 {[%clk 0:00:48]} 54. Rd7 {[%clk 0:00:09]}  f4 {[%clk 0:00:46]} 55. Re7 {[%clk 0:00:10]}  Kg3 {[%clk 0:00:36]} 56. Re4 {[%clk 0:00:10]}  Rd8 {[%clk 0:00:23]} 57. Bd5 {[%clk 0:00:10]}  Rb8 {[%clk 0:00:21]} 58. Kd4 {[%clk 0:00:10]}  Rb4+ {[%clk 0:00:20]} 59. Kd3 {[%clk 0:00:10]}  Rxe4 {[%clk 0:00:17]} 60. Bxe4 {[%clk 0:00:05]}  Kf2 {[%clk 0:00:17]} 0-1


[Site "https://www.chess.com"]

[Event "Titled Tuesday Blitz August 09 Late 2022"]
[White "Large, Peter G"]
[Black "Schmakel, Sam"]
[WhiteFideId "400866"]
[BlackFideId "2039311"]
[WhiteElo "2064"]
[BlackElo "2356"]
[Result "0-1"]
[Round "03"]
[TimeControl "180+1"]
[Date "2022.08.09"]
[WhiteClock "0:00:05"]
[BlackClock "0:00:35"]

1. Nf3 {[%clk 0:02:59]}  c5 {[%clk 0:02:58]} 2. b3 {[%clk 0:02:59]}  g6 {[%clk 0:02:56]} 3. Bb2 {[%clk 0:02:59]}  Nf6 {[%clk 0:02:56]} 4. e3 {[%clk 0:02:55]}  Bg7 {[%clk 0:02:57]} 5. c4 {[%clk 0:02:56]}  O-O {[%clk 0:02:57]} 6. Be2 {[%clk 0:02:55]}  d5 {[%clk 0:02:56]} 7. cxd5 {[%clk 0:02:55]}  Nxd5 {[%clk 0:02:57]} 8. Bxg7 {[%clk 0:02:54]}  Kxg7 {[%clk 0:02:58]} 9. Qc1 {[%clk 0:02:54]}  b6 {[%clk 0:02:56]} 10. O-O {[%clk 0:02:53]}  Bb7 {[%clk 0:02:56]} 11. a3 {[%clk 0:02:52]}  Nc6 {[%clk 0:02:52]} 12. Qb2+ {[%clk 0:02:46]}  f6 {[%clk 0:02:53]} 13. d3 {[%clk 0:02:42]}  e5 {[%clk 0:02:53]} 14. Nbd2 {[%clk 0:02:42]}  Qd7 {[%clk 0:02:50]} 15. Rac1 {[%clk 0:02:42]}  Rfe8 {[%clk 0:02:45]} 16. Rfe1 {[%clk 0:02:42]}  a5 {[%clk 0:02:10]} 17. Bf1 {[%clk 0:02:42]}  Rad8 {[%clk 0:02:01]} 18. h3 {[%clk 0:02:24]}  g5 {[%clk 0:01:55]} 19. Ne4 {[%clk 0:02:18]}  h6 {[%clk 0:01:48]} 20. Red1 {[%clk 0:01:56]}  f5 {[%clk 0:01:43]} 21. Ng3 {[%clk 0:01:56]}  Kg6 {[%clk 0:01:36]} 22. Re1 {[%clk 0:01:45]}  Nf6 {[%clk 0:01:22]} 23. Rcd1 {[%clk 0:01:09]}  Qd6 {[%clk 0:01:14]} 24. Qc2 {[%clk 0:00:57]}  Qe6 {[%clk 0:01:05]} 25. d4 {[%clk 0:00:48]}  e4 {[%clk 0:01:04]} 26. dxc5 {[%clk 0:00:17]}  exf3 {[%clk 0:01:00]} 27. cxb6 {[%clk 0:00:17]}  Ne5 {[%clk 0:00:56]} 28. Rxd8 {[%clk 0:00:14]}  Rxd8 {[%clk 0:00:57]} 29. Qc7 {[%clk 0:00:08]}  Rd7 {[%clk 0:00:57]} 30. Qb8 {[%clk 0:00:08]}  fxg2 {[%clk 0:00:48]} 31. Bxg2 {[%clk 0:00:05]}  Bxg2 {[%clk 0:00:48]} 32. Kxg2 {[%clk 0:00:06]}  Qd5+ {[%clk 0:00:47]} 33. Kf1 {[%clk 0:00:06]}  Nf3 {[%clk 0:00:42]} 34. Rc1 {[%clk 0:00:05]}  Nh4 {[%clk 0:00:35]} 0-1


[Site "https://www.chess.com"]

[Event "Titled Tuesday Blitz August 09 Late 2022"]
[White "Mardov, Dimitar"]
[Black "Popilski, Gil"]
[WhiteFideId "30919495"]
[BlackFideId "2809060"]
[WhiteElo "2185"]
[BlackElo "2537"]
[Result "1-0"]
[Round "03"]
[TimeControl "180+1"]
[Date "2022.08.09"]
[WhiteClock "0:00:17"]
[BlackClock "0:00:07"]

1. d4 {[%clk 0:02:51]}  f5 {[%clk 0:02:59]} 2. Nf3 {[%clk 0:02:49]}  Nf6 {[%clk 0:02:59]} 3. g3 {[%clk 0:02:49]}  g6 {[%clk 0:02:58]} 4. Bg2 {[%clk 0:02:50]}  Bg7 {[%clk 0:02:58]} 5. O-O {[%clk 0:02:51]}  O-O {[%clk 0:02:58]} 6. c4 {[%clk 0:02:52]}  d6 {[%clk 0:02:58]} 7. Nc3 {[%clk 0:02:53]}  Qe8 {[%clk 0:02:58]} 8. d5 {[%clk 0:02:53]}  Na6 {[%clk 0:02:56]} 9. Nd4 {[%clk 0:02:53]}  Bd7 {[%clk 0:02:55]} 10. b3 {[%clk 0:02:52]}  c6 {[%clk 0:02:54]} 11. Bb2 {[%clk 0:02:51]}  Nc7 {[%clk 0:02:53]} 12. dxc6 {[%clk 0:02:50]}  bxc6 {[%clk 0:02:49]} 13. Nc2 {[%clk 0:02:46]}  Rd8 {[%clk 0:02:42]} 14. Qd2 {[%clk 0:02:43]}  h6 {[%clk 0:02:35]} 15. Rad1 {[%clk 0:02:41]}  g5 {[%clk 0:02:35]} 16. e4 {[%clk 0:02:36]}  f4 {[%clk 0:02:33]} 17. f3 {[%clk 0:02:19]}  fxg3 {[%clk 0:02:26]} 18. hxg3 {[%clk 0:02:17]}  Nh5 {[%clk 0:02:27]} 19. Qe1 {[%clk 0:02:14]}  Be5 {[%clk 0:02:25]} 20. g4 {[%clk 0:02:07]}  Ng3 {[%clk 0:02:15]} 21. Rf2 {[%clk 0:02:01]}  Ne6 {[%clk 0:02:14]} 22. Ne3 {[%clk 0:01:58]}  Nf4 {[%clk 0:02:10]} 23. Nf5 {[%clk 0:01:52]}  Bxf5 {[%clk 0:02:04]} 24. exf5 {[%clk 0:01:51]}  h5 {[%clk 0:01:52]} 25. Ne4 {[%clk 0:01:42]}  Bxb2 {[%clk 0:01:37]} 26. Rxb2 {[%clk 0:01:33]}  Nxe4 {[%clk 0:01:36]} 27. Qxe4 {[%clk 0:01:30]}  h4 {[%clk 0:01:29]} 28. Rbd2 {[%clk 0:01:21]}  c5 {[%clk 0:01:27]} 29. Re1 {[%clk 0:01:13]}  Rd7 {[%clk 0:01:22]} 30. Qc2 {[%clk 0:01:03]}  Qf7 {[%clk 0:01:17]} 31. Re4 {[%clk 0:01:00]}  Qf6 {[%clk 0:01:15]} 32. Rxf4 {[%clk 0:00:55]}  gxf4 {[%clk 0:01:15]} 33. Qe4 {[%clk 0:00:55]}  Qh6 {[%clk 0:01:09]} 34. g5 {[%clk 0:00:46]}  Qxg5 {[%clk 0:01:01]} 35. Qe6+ {[%clk 0:00:46]}  Kh8 {[%clk 0:01:00]} 36. Qxd7 {[%clk 0:00:47]}  h3 {[%clk 0:01:00]} 37. f6 {[%clk 0:00:43]}  Rxf6 {[%clk 0:00:38]} 38. Qxh3+ {[%clk 0:00:37]}  Kg7 {[%clk 0:00:36]} 39. Rd5 {[%clk 0:00:34]}  Qg6 {[%clk 0:00:33]} 40. Rh5 {[%clk 0:00:30]}  Re6 {[%clk 0:00:25]} 41. Qh4 {[%clk 0:00:23]}  Qb1+ {[%clk 0:00:10]} 42. Kh2 {[%clk 0:00:21]}  Rf6 {[%clk 0:00:09]} 43. Rg5+ {[%clk 0:00:19]}  Kf7 {[%clk 0:00:09]} 44. Qh5+ {[%clk 0:00:17]}  Ke6 {[%clk 0:00:07]} 45. Bh3+ {[%clk 0:00:17]} 1-0


[Site "https://www.chess.com"]